bitfinex/quotes_ETHUSD_20260120
["timestamp","ask_amount","ask_price","bid_price","bid_amount"]
[1768879093254,0.97732378,3188.4,3188.3,0.002]
[1768879093451,0.97832378,3188.4,3188.3,0.002]
[1768879094368,0.001,3188.4,3188.3,0.002]
[1768879101283,0.97832378,3188.4,3188.3,0.002]
[1768879101484,0.97832378,3188.4,3188.0,0.0028028]
[1768879101649,0.97732378,3188.3,3188.0,0.0028028]
[1768879108883,0.97732378,3188.3,3187.6,0.002]
[1768879109391,0.97732378,3188.3,3187.6,0.923825]
[1768879112661,0.9521539,3188.3,3187.6,0.923825]
[1768879113986,0.9521539,3188.3,3187.6,0.002]
[1768879114191,0.9521539,3188.1,3187.6,0.002]
[1768879114359,0.9521539,3188.0,3187.6,0.002]
[1768879116776,0.9521539,3188.0,3187.6,0.923825]
[1768879117794,0.9521539,3188.0,3187.9,0.002]
[1768879117976,0.9521539,3188.0,3187.6,0.923825]
[1768879122792,1.41262656,3188.0,3187.6,0.923825]
[1768879122992,1.41262656,3188.0,3187.6,0.002]
[1768879125073,0.9521539,3188.0,3187.6,0.002]
[1768879128411,1.45562916,3188.1,3187.6,0.914245]
[1768879130791,1.45562916,3188.1,3187.9,0.002]
[1768879130980,1.45562916,3188.1,3187.6,0.914245]
[1768879132109,0.93962916,3188.0,3187.6,0.002]
[1768879132314,0.45923194,3187.9,3187.6,0.002]
[1768879132480,1.3988611,3187.9,3187.6,0.002]
[1768879134584,0.9982947,3187.8,3187.6,0.002]
[1768879138032,0.9982947,3188.0,3187.6,0.002]
[1768879138219,0.516,3188.1,3187.6,0.97556038]
[1768879139435,0.46508637,3188.0,3187.6,0.97556038]
[1768879141235,0.516,3188.1,3187.6,0.97556038]
[1768879142741,0.516,3188.1,3187.9,0.002]
[1768879143039,0.516,3188.1,3187.6,0.97556038]
[1768879143234,1.0000975,3188.4,3187.6,0.97556038]
[1768879143536,0.516,3188.3,3187.7,0.97356038]
[1768879143736,1.5142947,3188.3,3187.7,0.97356038]
[1768879145341,0.0018028,3188.4,3187.8,0.97356038]
[1768879145545,0.0018028,3188.4,3188.0,0.97356038]
[1768879146532,0.0018028,3188.4,3188.1,3.13666447]
[1768879146733,0.0018028,3188.4,3188.2,0.97356038]
[1768879147333,0.00080264,3188.7,3188.3,0.97356038]
[1768879148535,0.00080264,3188.7,3188.3,3.13639802]
[1768879148850,0.00080264,3188.7,3188.5,0.97356038]
[1768879149844,0.00180256,3189.0,3188.6,0.97356038]
[1768879151948,0.9982947,3188.9,3188.3,0.00080272]
[1768879152862,0.9982947,3188.8,3188.3,0.00080272]
[1768879153359,0.9982947,3188.7,3188.3,0.00080272]
[1768879153762,1.41189598,3188.8,3188.3,0.9743631]
[1768879154753,0.001,3188.6,3188.3,0.9743631]
[1768879156652,0.001,3188.6,3188.3,0.00080272]
[1768879158039,0.001,3188.6,3188.3,0.9743631]
[1768879162582,3.1375991,3189.0,3188.4,0.97356038]
[1768879162583,0.00180256,3189.0,3188.4,0.97356038]
[1768879163174,0.90507221,3189.0,3188.4,0.97356038]
[1768879163468,0.90326965,3188.9,3188.4,0.97356038]
[1768879163675,0.90326965,3188.9,3188.3,0.00080272]
[1768879163881,0.90326965,3188.9,3188.3,0.91340473]
[1768879165088,0.90326965,3188.8,3188.3,0.00080272]
[1768879167693,0.90326965,3188.7,3188.3,0.00080272]
[1768879167993,0.90326965,3188.7,3188.6,0.002]
[1768879168184,0.001,3188.6,3188.3,0.00080272]
[1768879168361,0.90426965,3188.6,3188.3,0.00080272]
[1768879168562,1.30829606,3188.6,3188.3,0.00280272]
[1768879168998,0.90326965,3188.5,3188.3,0.00280272]
[1768879173462,0.001,3188.6,3188.3,0.00280272]
[1768879173993,0.001,3188.6,3188.3,0.91540473]
[1768879181122,0.00180256,3189.0,3188.4,0.91260201]
[1768879181319,0.45748294,3189.0,3188.4,0.91260201]
[1768879181530,1.36075259,3189.0,3188.4,0.91260201]
[1768879182148,0.00180256,3189.0,3188.4,0.91260201]
[1768879182736,0.00180256,3189.0,3188.3,0.00280272]
[1768879182737,0.95060627,3188.9,3188.3,0.00280272]
[1768879182899,0.95060627,3188.7,3188.3,0.00280272]
[1768879183249,0.516,3188.8,3188.3,1.0007688]
[1768879184935,0.516,3188.8,3188.4,0.99796608]
[1768879185116,0.00180256,3189.0,3188.6,0.99796608]
[1768879186346,0.51780184,3189.3,3188.6,0.99876872]
[1768879186547,0.00180184,3189.3,3188.6,0.99876872]
[1768879187024,0.00180184,3189.3,3188.8,0.99796608]
[1768879187224,0.00180184,3189.3,3189.0,0.99796608]
[1768879188850,0.95140819,3189.6,3189.0,1.51396608]
[1768879189031,0.00080192,3189.6,3189.1,0.99796608]
[1768879189340,0.00080192,3189.6,3189.3,0.99796608]
[1768879190363,0.001,3189.7,3189.3,0.99796608]
[1768879190546,1.46660627,3190.2,3189.5,0.99796608]
[1768879190722,0.95060627,3190.1,3189.5,0.99796608]
[1768879191351,0.95060627,3190.1,3189.6,0.99796608]
[1768879191735,0.95060627,3190.1,3189.4,0.516]
[1768879192751,0.95060627,3190.1,3189.4,1.51396608]
[1768879193778,0.90871296,3190.0,3189.4,0.516]
[1768879194541,0.40851106,3190.1,3189.5,0.97705927]
[1768879194736,0.90871296,3190.2,3189.5,0.97705927]
[1768879195042,0.90871296,3190.2,3189.4,0.516]
[1768879195043,0.90871296,3190.1,3189.4,0.516]
[1768879196176,0.90871296,3190.1,3189.5,0.97705927]
[1768879196356,0.90871296,3190.4,3189.5,0.97705927]
[1768879197660,0.90871296,3190.4,3189.6,0.97705927]
[1768879198895,0.90871296,3190.3,3189.6,0.97705927]
[1768879199072,0.90871296,3190.3,3189.7,0.97705927]
[1768879201898,3.13451525,3190.3,3189.7,0.97705927]
[1768879202200,0.90871296,3190.2,3189.7,0.97705927]
[1768879204803,0.002,3190.0,3189.7,0.97705927]
[1768879205097,1.42471296,3190.5,3189.9,0.97705927]
[1768879205287,0.002,3190.3,3189.9,0.97705927]
[1768879207207,4.04277939,3190.8,3189.9,0.97705927]
[1768879207511,0.90871296,3190.7,3189.9,0.97705927]
[1768879207994,0.90871296,3190.7,3190.0,0.97705927]
[1768879208312,0.90871296,3190.7,3190.1,0.97705927]
[1768879208986,3.13402555,3190.8,3190.0,0.40830078]
[1768879208987,0.90871296,3190.6,3190.0,1.38536005]
[1768879211427,0.90871296,3190.6,3189.8,0.41132187]
[1768879211708,0.516,3190.9,3189.8,0.516]
[1768879211709,0.90871296,3190.5,3189.8,0.516]
[1768879211910,0.90871296,3190.5,3189.8,3.65099094]
[1768879212111,0.90871296,3190.5,3189.8,1.49305927]
[1768879213138,0.90871296,3190.4,3189.7,0.516]
[1768879213924,0.90871296,3190.4,3189.7,1.49305927]
[1768879215331,0.90871296,3190.4,3189.7,1.95598085]
[1768879215917,0.90871296,3190.4,3189.7,4.11392326]
[1768879216123,0.90871296,3190.7,3189.8,0.97705927]
[1768879216293,1.42471296,3190.8,3189.8,0.97705927]
[1768879216499,1.42471296,3190.8,3190.0,0.97705927]
[1768879217610,1.42471296,3190.8,3190.1,0.97705927]
[1768879219836,0.90871296,3190.7,3190.1,0.97705927]
[1768879221027,0.90871296,3190.6,3190.0,0.001]
[1768879223644,0.93731997,3190.4,3190.0,0.001]
[1768879225233,0.93731997,3190.6,3190.0,0.91223816]
[1768879229473,0.93731997,3190.6,3190.3,0.001]
[1768879229721,1.34446964,3190.5,3190.3,0.001]
[1768879229984,0.002,3190.4,3190.3,0.001]
[1768879232179,0.93931997,3190.4,3190.3,0.001]
[1768879232737,0.93931997,3190.4,3190.0,0.001]
[1768879233767,0.91080868,3190.3,3190.0,0.001]
[1768879235546,0.40472211,3190.3,3190.0,0.001]
[1768879235862,0.91080868,3190.2,3190.0,0.001]
[1768879240776,0.40472211,3190.3,3190.0,0.001]
[1768879243497,0.94265856,3190.2,3190.0,0.001]
[1768879244416,0.94465856,3190.4,3190.0,0.001]
[1768879244973,0.94265856,3190.3,3190.0,0.001]
[1768879245920,4.07716457,3190.3,3190.0,0.001]
[1768879246063,0.94265856,3190.2,3189.6,0.001]
[1768879246263,0.94265856,3190.1,3189.6,0.001]
[1768879246700,0.94265856,3190.1,3189.6,0.92251016]
[1768879247372,0.94265856,3190.1,3189.6,0.001]
[1768879247574,0.94265856,3190.0,3189.6,0.001]
[1768879247890,0.40774217,3189.9,3189.6,0.001]
[1768879248094,0.94265856,3189.8,3189.6,0.001]
[1768879248308,0.94265856,3189.2,3188.9,0.00080192]
[1768879248466,0.94265856,3189.2,3188.6,0.9243128]
[1768879248671,5.30971321,3189.3,3188.1,0.92151016]
[1768879248672,0.94265856,3188.8,3188.1,0.92151016]
[1768879249007,0.94265856,3188.8,3188.2,0.92151016]
[1768879250105,0.94265856,3188.8,3188.3,0.92431288]
[1768879251317,0.94265856,3188.9,3188.3,0.92431288]
[1768879252005,0.94265856,3188.8,3188.3,0.00280272]
[1768879252211,1.35051421,3188.7,3188.3,0.00280272]
[1768879253222,1.35051421,3188.7,3188.3,0.96672143]
[1768879253729,1.35051421,3188.7,3188.3,0.00280272]
[1768879255924,0.9393563,3188.5,3187.6,0.002]
[1768879256110,0.9393563,3188.3,3187.6,0.85620205]
[1768879256311,0.9393563,3188.3,3187.6,0.002]
[1768879256512,0.9393563,3188.1,3187.6,0.002]
[1768879256822,0.9393563,3188.1,3187.4,0.002]
[1768879256823,0.9393563,3188.0,3187.4,0.002]
[1768879256988,0.9393563,3187.8,3187.4,0.002]
[1768879257343,0.9393563,3187.7,3187.4,0.002]
[1768879261530,0.9393563,3187.6,3187.4,0.002]
[1768879265349,0.516,3187.8,3187.4,0.85620205]
[1768879266249,0.9393563,3188.0,3187.4,0.85620205]
[1768879266545,0.9393563,3188.2,3187.4,0.85620205]
[1768879266718,3.65246771,3188.3,3187.4,0.85620205]
[1768879266910,4.33142252,3188.3,3187.4,0.85620205]
[1768879267759,5.27077882,3188.3,3187.4,0.85620205]
[1768879268258,2.13431111,3188.3,3187.5,0.85420205]
[1768879268753,0.00080288,3188.4,3187.5,0.85420205]
[1768879269525,0.00080288,3188.4,3187.4,3.65533655]
[1768879269526,0.94015918,3188.4,3187.8,0.85420205]
[1768879269727,0.9393563,3188.0,3187.4,0.002]
[1768879269964,0.9393563,3187.4,3186.8,0.002]
[1768879270261,0.9393563,3187.4,3186.8,0.85620205]
[1768879271143,0.9393563,3187.4,3186.8,0.002]
[1768879271445,6.27490352,3187.3,3186.8,0.002]
[1768879271644,0.9393563,3187.1,3186.8,0.002]
[1768879272150,0.9393563,3187.1,3186.4,0.002]
[1768879272856,0.9393563,3187.1,3186.4,0.85620205]
[1768879273449,3.13774709,3187.0,3186.4,0.85620205]
[1768879273658,0.9393563,3186.9,3186.4,0.85620205]
[1768879276998,4.07720553,3186.9,3186.4,0.85620205]
[1768879278210,0.9393563,3187.1,3186.4,0.85620205]
[1768879280511,0.9393563,3186.9,3186.4,0.85620205]
[1768879280807,0.9393563,3186.9,3186.4,0.002]
[1768879282214,0.9393563,3186.9,3186.7,0.002]
[1768879282798,0.9393563,3186.8,3186.7,0.002]
[1768879285544,4.07730031,3186.8,3186.7,0.002]
[1768879286429,0.9393563,3186.8,3186.7,0.002]
[1768879286633,1.66085854,3186.8,3186.7,0.002]
[1768879292045,1.43406339,3186.9,3186.7,0.002]
[1768879293557,0.91806339,3187.1,3186.7,0.002]
[1768879293761,0.516,3187.0,3186.7,0.85620205]
[1768879293957,0.001,3186.8,3186.7,0.85620205]
[1768879294162,0.001,3186.8,3186.7,0.002]
[1768879294974,9.47719672,3187.6,3186.8,0.85420205]
[1768879295125,0.91806339,3187.7,3186.8,0.85420205]
[1768879295325,1.43406339,3187.8,3186.8,0.85420205]
[1768879295520,0.516,3187.8,3186.8,0.85420205]
[1768879295724,0.516,3187.8,3186.9,3.13784555]
[1768879295925,0.516,3187.8,3187.1,0.85420205]
[1768879296953,4.57102809,3187.8,3187.1,0.85420205]
[1768879298068,0.516,3187.8,3187.1,0.85420205]
[1768879298951,0.91806339,3188.0,3187.2,0.85420205]
[1768879299134,0.516,3188.1,3187.2,0.85420205]
[1768879299445,0.516,3188.1,3187.3,0.85420205]
[1768879301271,3.65268952,3188.1,3187.3,0.85420205]
[1768879301437,0.91806339,3188.0,3187.3,0.85420205]
[1768879302338,3.65268952,3188.1,3187.3,0.85420205]
[1768879302544,3.65268952,3188.1,3187.4,0.85420205]
[1768879302545,0.516,3188.1,3187.4,0.85420205]
[1768879302749,0.92366651,3188.3,3187.4,0.85420205]
[1768879302944,0.00080288,3188.4,3187.4,0.85420205]
[1768879302945,3.65319725,3188.4,3187.4,0.85420205]
[1768879303150,0.92366651,3188.3,3187.4,0.85420205]
[1768879303477,0.92366651,3188.3,3187.5,0.85420205]
[1768879303683,0.51680288,3188.4,3187.7,0.85420205]
[1768879304248,3.65317328,3188.4,3187.7,0.85420205]
[1768879304741,3.13717328,3188.4,3187.7,0.85420205]
[1768879305085,0.92366651,3188.3,3187.7,0.85420205]
[1768879305680,0.92446939,3188.4,3187.7,0.85420205]
[1768879305982,0.001,3187.8,3187.7,0.85420205]
[1768879307050,0.00080288,3188.4,3187.7,3.13705806]
[1768879307255,0.00080288,3188.4,3187.8,0.85420205]
[1768879307782,3.65292861,3188.7,3187.9,0.85339917]
[1768879307783,0.51680272,3188.7,3187.9,0.85339917]
[1768879307954,0.51680272,3188.7,3188.1,0.85339917]
[1768879309667,0.00080272,3188.7,3188.2,0.85339917]
[1768879309987,0.00080272,3188.7,3188.1,8.45478634]
[1768879309988,0.00080264,3189.0,3188.3,0.85339925]
[1768879310664,0.00080192,3189.3,3188.6,0.00080272]
[1768879310870,0.00080192,3189.3,3188.7,0.85179381]
[1768879311990,0.00080192,3189.3,3188.7,3.13606029]
[1768879312215,0.00080192,3189.3,3188.8,0.85179381]
[1768879312380,0.000802,3189.6,3189.0,0.85099189]
[1768879312795,0.92366651,3190.0,3189.2,0.85018989]
[1768879312982,0.92366651,3190.0,3189.2,0.85099197]
[1768879313182,0.9694964,3189.9,3189.2,0.85099197]
[1768879314380,1.4854964,3190.1,3189.3,0.85018989]
[1768879314562,5.08223633,3190.1,3189.3,0.85018989]
[1768879314767,0.9694964,3190.0,3189.3,0.85018989]
[1768879316501,0.9714964,3190.4,3189.5,0.85018989]
[1768879316704,0.9714964,3190.4,3189.7,0.85018989]
[1768879316893,0.002,3190.4,3189.7,0.85018989]
[1768879319513,0.002,3190.4,3189.8,0.85018989]
[1768879320023,0.516,3190.8,3190.1,0.84818989]
[1768879320196,0.9694964,3190.9,3190.2,0.84818989]
[1768879320390,3.13391599,3190.9,3190.2,0.84818989]
[1768879320722,0.9694964,3190.8,3190.2,0.84818989]
[1768879321425,0.9694964,3190.8,3189.8,0.84818989]
[1768879321426,6.26809904,3190.8,3189.8,0.84818989]
[1768879321731,0.9694964,3190.7,3190.0,0.516]
[1768879322044,0.9694964,3191.1,3190.4,5.31815937]
[1768879322342,0.9694964,3191.1,3190.5,0.84818989]
[1768879323330,0.9694964,3191.0,3190.1,0.84818989]
[1768879323510,0.9694964,3190.8,3190.2,0.84818989]
[1768879323820,0.9694964,3190.8,3190.2,1.36418989]
[1768879326004,0.9694964,3190.7,3189.8,3.13493326]
[1768879326311,0.9694964,3190.7,3190.0,0.516]
[1768879326634,0.9694964,3190.5,3190.0,0.516]
[1768879327400,0.9694964,3190.5,3189.9,0.84818989]
[1768879330057,0.9694964,3190.5,3190.2,0.001]
[1768879330374,0.9694964,3190.4,3190.2,0.001]
[1768879331260,19.999,3190.0,3189.9,0.84818989]
[1768879333092,19.999,3190.0,3189.1,5.30735991]
[1768879333395,20.9684964,3190.0,3189.5,0.84818989]
[1768879333581,19.999,3190.0,3189.5,0.84818989]
[1768879335102,0.9694964,3189.9,3189.2,1.36499197]
[1768879335258,0.9694964,3189.9,3189.2,4.50056223]
[1768879335458,0.9694964,3189.9,3189.3,3.13546647]
[1768879335792,0.9694964,3189.9,3189.3,3.98365636]
[1768879336691,0.9694964,3189.9,3189.3,0.84818989]
[1768879337004,0.9694964,3189.7,3189.2,0.84899197]
[1768879337214,0.9694964,3189.7,3189.2,1.36499197]
[1768879338365,0.9694964,3189.7,3189.2,0.51680208]
[1768879339663,0.9694964,3189.7,3189.2,4.50057119]
[1768879340472,0.9694964,3189.7,3189.2,1.36499197]
[1768879341708,0.9694964,3189.7,3189.2,0.51680208]
[1768879342389,0.9694964,3189.5,3188.9,3.98567002]
[1768879342763,0.9694964,3189.5,3189.0,3.13577033]
[1768879342998,0.9694964,3189.5,3188.9,3.98563876]
[1768879343368,0.9694964,3189.5,3188.9,0.000802]
[1768879343868,0.92347353,3189.4,3188.9,0.000802]
[1768879344167,0.92347353,3189.2,3188.9,0.000802]
[1768879345369,0.92347353,3189.2,3188.4,0.516]
[1768879345571,0.0008028,3188.7,3188.5,3.13621466]
[1768879346098,0.00080272,3189.0,3188.5,3.13621466]
[1768879346516,0.00080272,3189.0,3188.4,3.651521]
[1768879346719,0.92427625,3189.0,3188.4,0.51519704]
[1768879347068,0.92427625,3189.0,3188.4,3.65156236]
[1768879347473,0.92427625,3189.0,3188.3,3.65321441]
[1768879350287,0.92427625,3189.0,3188.3,7.46865866]
[1768879350487,0.92427625,3189.0,3188.3,4.33219095]
[1768879351917,0.92427625,3189.0,3188.3,1.19577942]
[1768879352122,0.92427625,3189.0,3188.3,0.00080288]
[1768879352655,0.92347353,3188.9,3188.3,0.00080288]
[1768879353616,0.92347353,3188.8,3188.3,0.00080288]
[1768879354820,0.92347353,3188.8,3188.6,0.001]
[1768879355917,0.92347353,3188.7,3188.6,0.001]
[1768879356120,1.32942039,3188.7,3188.6,0.001]
[1768879358447,0.00080272,3189.0,3188.6,0.001]
[1768879358598,0.92427625,3189.0,3188.6,0.001]
[1768879359528,0.00080272,3189.0,3188.6,0.001]
[1768879361494,0.000802,3189.3,3188.6,5.30835991]
[1768879361693,0.000802,3189.3,3188.7,0.53083599]
[1768879362402,0.000802,3189.3,3188.7,3.66688971]
[1768879362725,0.98300657,3189.3,3188.7,3.66688971]
[1768879365282,0.98300657,3189.3,3188.7,6.80296397]
[1768879365861,0.98300657,3189.3,3188.7,3.66688971]
[1768879366056,0.98300657,3189.3,3188.8,1.21122021]
[1768879366671,0.000802,3189.3,3188.8,1.72722021]
[1768879366873,0.000802,3189.3,3188.8,4.86318608]
[1768879367184,0.000802,3189.3,3188.8,1.72722021]
[1768879367486,0.000802,3189.3,3188.8,3.65196857]
[1768879367979,0.98300657,3189.4,3188.9,0.00080208]
[1768879371388,0.98220457,3189.3,3188.9,0.00080208]
[1768879374897,0.9423386,3189.2,3188.9,0.00080208]
[1768879375780,0.9423386,3189.1,3188.9,0.00080208]
[1768879378790,0.000802,3189.4,3188.9,0.00080208]
[1768879379288,0.9431406,3189.4,3188.9,0.00080208]
[1768879380097,0.9431406,3189.4,3189.2,0.001]
[1768879380464,0.000802,3189.4,3189.2,0.001]
[1768879386295,0.00080208,3189.6,3189.2,0.001]
[1768879387096,0.9423386,3190.4,3189.2,5.31157698]
[1768879387400,0.9423386,3190.3,3189.3,0.5311577]
[1768879389010,0.9423386,3190.1,3189.3,3.66661735]
[1768879389701,0.9423386,3190.1,3189.3,4.18261735]
[1768879390402,0.9423386,3190.1,3189.3,7.31810162]
[1768879390605,0.9423386,3190.4,3189.4,1.26296786]
[1768879391172,0.9423386,3190.4,3189.5,3.13528766]
[1768879391995,0.9423386,3190.4,3189.5,3.13628766]
[1768879392211,0.002,3189.8,3189.5,3.13628766]
[1768879392378,0.9423386,3190.3,3189.6,0.69738144]
[1768879392580,0.002,3190.1,3189.6,0.69738144]
[1768879392782,0.002,3190.1,3189.6,3.83256377]
[1768879392988,0.002,3190.1,3189.6,0.69738144]
[1768879393189,0.002,3190.1,3189.5,3.1362586]
[1768879394421,0.002,3190.1,3189.5,0.001]
[1768879397622,0.9443386,3190.5,3189.8,5.30977482]
[1768879397805,0.9443386,3190.5,3189.5,0.001]
[1768879398004,0.9443386,3190.5,3189.6,1.14317719]
[1768879398622,0.002,3190.5,3189.8,5.30977482]
[1768879398811,0.002,3190.5,3189.8,8.44472864]
[1768879399818,0.9443386,3190.5,3189.8,8.44472864]
[1768879400123,0.9443386,3190.5,3189.9,0.84447286]
[1768879401720,0.9443386,3190.5,3189.9,3.97936134]
[1768879402693,0.9443386,3190.5,3189.9,0.84447286]
[1768879402901,0.9443386,3190.5,3189.9,3.13487897]
[1768879403633,0.9443386,3190.5,3189.6,6.45295201]
[1768879403634,0.9443386,3190.5,3189.6,9.58813052]
[1768879404205,0.002,3190.2,3189.7,3.13509107]
[1768879405606,0.98678769,3190.2,3189.8,0.516]
[1768879405807,0.98678769,3190.2,3189.8,0.94383303]
[1768879407396,0.98678769,3190.2,3189.8,0.516]
[1768879407596,0.98678769,3190.2,3189.7,0.516]
[1768879407844,0.98678769,3190.2,3189.5,0.001]
[1768879408008,0.98478769,3190.1,3189.5,0.001]
[1768879409718,0.98478769,3190.0,3189.5,0.001]
[1768879410040,0.98478769,3189.9,3189.5,0.001]
[1768879416165,0.98478769,3189.9,3189.8,0.001]
[1768879420864,0.98478769,3189.8,3189.5,0.001]
[1768879423838,0.93714323,3189.9,3189.5,0.001]
[1768879424868,0.93714323,3189.9,3189.5,0.002]
[1768879425768,0.93714323,3189.9,3189.5,0.001]
[1768879427331,0.002,3190.2,3189.5,0.001]
[1768879427332,0.002,3190.2,3189.6,0.001]
[1768879427563,0.93914323,3190.5,3189.8,0.001]
[1768879427964,0.93914323,3190.5,3189.9,0.001]
[1768879429364,0.93914323,3190.5,3190.0,0.001]
[1768879429536,0.002,3190.5,3190.0,0.001]
[1768879432275,0.93914323,3190.5,3190.0,0.001]
[1768879432438,0.93914323,3190.5,3189.8,0.001]
[1768879432748,0.93914323,3190.5,3190.0,0.001]
[1768879432966,0.93914323,3190.5,3190.1,0.31458879]
[1768879433186,0.93914323,3190.5,3190.1,0.001]
[1768879434984,0.002,3190.5,3190.1,0.001]
[1768879435887,0.99165245,3190.5,3190.1,0.001]
[1768879438088,0.99165245,3190.5,3189.9,0.001]
[1768879439988,0.002,3190.2,3189.9,0.001]
[1768879440291,0.002,3190.2,3190.0,0.001]
[1768879443497,0.002,3190.5,3190.0,0.001]
[1768879448703,0.002,3190.5,3189.9,3.76205161]
[1768879448704,0.98965245,3190.4,3189.9,0.62721821]
[1768879448909,0.98965245,3190.4,3189.9,0.001]
[1768879449277,0.98965245,3190.4,3189.8,0.001]
[1768879451912,0.98965245,3190.4,3190.2,0.001]
[1768879456144,0.98965245,3190.3,3189.8,0.001]
[1768879456346,0.98965245,3190.1,3189.8,0.001]
[1768879460128,0.98965245,3190.0,3189.8,0.001]
[1768879460520,3.13630972,3190.5,3189.8,0.001]
[1768879460521,0.98965245,3190.4,3189.8,0.001]
[1768879460727,0.516,3190.3,3189.9,0.002]
[1768879460945,0.98965245,3190.4,3189.9,0.002]
[1768879461149,1.50565245,3190.4,3189.9,0.002]
[1768879462333,0.98965245,3190.3,3189.8,0.001]
[1768879464051,0.977546,3190.2,3189.8,0.001]
[1768879464250,0.977546,3190.2,3190.1,0.001]
[1768879465629,1.493546,3190.4,3190.1,0.001]
[1768879467565,0.516,3190.4,3190.1,0.001]
[1768879467763,0.977546,3190.3,3190.1,0.001]
[1768879469867,0.002,3190.8,3190.1,0.001]
[1768879469868,0.516,3190.7,3190.1,0.90254391]
[1768879470069,0.516,3190.7,3190.2,0.90154391]
[1768879470733,0.979546,3190.8,3190.2,0.90154391]
[1768879470932,1.495546,3190.8,3190.2,0.90154391]
[1768879471958,0.977546,3190.7,3190.2,0.90154391]
[1768879472965,0.977546,3190.7,3190.1,0.001]
[1768879473168,0.977546,3190.6,3190.1,0.001]
[1768879475278,0.977546,3190.5,3189.8,0.001]
[1768879476163,0.977546,3190.3,3189.8,0.001]
[1768879476661,0.977546,3190.3,3190.1,0.001]
[1768879478681,0.977546,3190.2,3189.8,0.001]
[1768879479563,0.977546,3190.1,3189.8,0.001]
[1768879486097,0.977546,3190.1,3189.5,0.001]
[1768879486296,0.98419826,3189.9,3189.5,0.001]
[1768879486607,0.98419826,3189.9,3189.2,0.00180216]
[1768879488512,4.11915104,3189.9,3189.2,0.00180216]
[1768879488680,0.98419826,3189.8,3189.5,0.001]
[1768879492199,0.516,3189.7,3189.5,0.001]
[1768879493012,0.516,3189.7,3189.2,0.00180216]
[1768879493013,0.95609482,3189.6,3189.2,0.00180216]
[1768879493183,0.95609482,3189.5,3189.2,0.00180216]
[1768879495621,0.46071897,3189.6,3189.2,0.98534816]
[1768879495819,0.95809482,3190.2,3189.2,0.98534816]
[1768879495820,0.516,3189.7,3189.2,0.98534816]
[1768879498239,0.95609482,3189.9,3189.2,0.98534816]
[1768879498408,0.516,3189.8,3189.2,0.98534816]
[1768879500437,0.516,3189.8,3189.5,0.001]
[1768879501012,1.47409482,3189.8,3189.5,0.001]
[1768879501625,3.59792735,3189.8,3189.2,0.00180216]
[1768879501797,0.95609482,3189.7,3189.2,0.00180216]
[1768879501994,0.95609482,3189.5,3189.2,0.00180216]
[1768879502614,0.002,3189.8,3189.2,0.98763674]
[1768879502923,0.95609482,3189.7,3189.2,0.94386545]
[1768879503114,0.95609482,3189.5,3188.9,0.00080208]
[1768879503324,0.95609482,3189.3,3188.9,0.00080208]
[1768879507229,0.95609482,3189.2,3188.9,0.00080208]
[1768879507734,0.95609482,3189.2,3188.6,0.0018028]
[1768879509027,0.95609482,3189.0,3188.6,0.0018028]
[1768879509334,1.47209482,3188.9,3188.6,0.0018028]
[1768879509697,0.95609482,3188.8,3188.3,0.00080288]
[1768879510910,0.95609482,3188.6,3188.3,0.00080288]
[1768879511114,1.47209482,3188.5,3188.3,0.00080288]
[1768879513237,0.516,3188.5,3188.3,0.00080288]
[1768879515132,0.516,3188.4,3188.3,0.00080288]
[1768879517604,1.47209482,3188.4,3188.3,0.00080288]
[1768879519047,0.95609482,3188.3,3188.0,0.00080304]
[1768879523454,0.516,3188.2,3188.1,0.91222916]
[1768879523809,0.516,3188.2,3188.0,0.00080304]
[1768879524738,1.51389925,3188.2,3188.0,0.00080304]
[1768879525334,0.516,3188.2,3188.0,0.00080304]
[1768879526015,0.99789925,3188.4,3188.0,0.00080304]
[1768879526218,0.516,3188.3,3188.0,0.00080304]
[1768879527049,0.99789925,3188.4,3188.0,0.00080304]
[1768879527252,0.516,3188.2,3188.0,0.00080304]
[1768879527612,0.516,3188.2,3188.0,0.9130322]
[1768879528003,0.99870213,3188.7,3188.1,0.91222916]
[1768879528125,0.00080288,3188.7,3188.1,0.91222916]
[1768879528318,0.51680288,3188.7,3188.1,0.91222916]
[1768879531146,0.51680288,3188.7,3188.1,3.13664712]
[1768879531354,0.51680288,3188.7,3188.2,0.91222916]
[1768879531555,0.51680288,3188.7,3188.4,0.91222916]
[1768879532154,0.00080288,3188.7,3188.4,0.91222916]
[1768879538562,0.002,3189.8,3188.7,0.91222916]
[1768879538757,1.51389925,3189.5,3188.7,0.91222916]
[1768879540363,0.516,3189.5,3188.7,0.91222916]
[1768879540860,0.516,3189.5,3188.8,3.13597591]
[1768879541064,0.516,3189.5,3189.0,0.91222916]
[1768879542233,1.49169625,3189.5,3189.0,0.91222916]
[1768879548272,0.97569625,3189.4,3189.0,0.91222916]
[1768879548567,0.97849833,3189.3,3188.6,0.00080288]
[1768879551968,0.001,3189.0,3188.6,0.00080288]
[1768879552172,0.97669625,3189.0,3188.6,0.00080288]
[1768879552374,0.97669625,3189.0,3188.6,0.40699171]
[1768879553888,0.97669625,3189.0,3188.6,0.00080288]
[1768879560004,0.99714516,3188.9,3188.6,0.00080288]
[1768879560566,0.99714516,3188.9,3188.3,0.00080296]
[1768879563680,4.13306397,3188.9,3188.3,0.00080296]
[1768879563882,0.99714516,3188.8,3188.3,0.00080296]
[1768879564214,0.99714516,3188.6,3188.3,0.00080296]
[1768879564500,0.99714516,3188.6,3188.3,0.00280296]
[1768879566816,1.51314516,3188.6,3188.3,0.00280296]
[1768879567417,0.516,3188.6,3188.3,0.00280296]
[1768879567618,0.99714516,3188.5,3188.3,0.00280296]
[1768879572327,0.99714516,3188.4,3188.3,0.00280296]
[1768879575644,0.99714516,3188.3,3188.0,0.00280304]
[1768879578558,0.99714516,3188.5,3188.0,0.00280304]
[1768879579209,0.516,3188.4,3188.0,1.02712282]
[1768879585042,1.54516728,3188.4,3188.0,1.02712282]
[1768879585937,1.02916728,3188.3,3188.0,0.00280304]
[1768879595057,1.02916728,3188.2,3188.0,0.00280304]
[1768879598878,1.54516728,3188.4,3188.0,0.00280304]
[1768879599041,1.02916728,3188.3,3187.5,1.03087541]
[1768879600375,1.54597032,3188.4,3187.5,1.03087541]
[1768879600676,1.02916728,3188.3,3187.5,1.03087541]
[1768879600976,1.02916728,3188.3,3187.6,1.03087541]